[Event "Titled Tuesday Blitz March 22 Early 2022"]
[White "Thomas, Anysia"]
[Black "Fiol, Fabrice"]
[WhiteFideId "670472"]
[BlackFideId "611670"]
[WhiteElo "2002"]
[BlackElo "2497"]
[Result "1-0"]
[Round "03"]
[TimeControl "180+1"]
[Date "2022.03.22"]
[WhiteClock "0:00:02"]
[BlackClock "0:00:01"]

1. d4 {[%clk 0:03:00]}  Nf6 {[%clk 0:02:59]} 2. c4 {[%clk 0:03:01]}  e6 {[%clk 0:03:00]} 3. Nf3 {[%clk 0:03:01]}  Bb4+ {[%clk 0:03:00]} 4. Nbd2 {[%clk 0:03:00]}  b6 {[%clk 0:03:00]} 5. g3 {[%clk 0:03:00]}  Bb7 {[%clk 0:03:00]} 6. Bg2 {[%clk 0:03:00]}  O-O {[%clk 0:03:00]} 7. O-O {[%clk 0:03:01]}  d5 {[%clk 0:03:00]} 8. Ne5 {[%clk 0:03:00]}  Bd6 {[%clk 0:02:59]} 9. cxd5 {[%clk 0:02:57]}  exd5 {[%clk 0:02:59]} 10. Ndf3 {[%clk 0:02:50]}  Nbd7 {[%clk 0:02:53]} 11. b3 {[%clk 0:02:49]}  c5 {[%clk 0:02:51]} 12. Bb2 {[%clk 0:02:48]}  Ne4 {[%clk 0:02:47]} 13. e3 {[%clk 0:02:46]}  f6 {[%clk 0:02:41]} 14. Nxd7 {[%clk 0:02:31]}  Qxd7 {[%clk 0:02:42]} 15. Nd2 {[%clk 0:02:30]}  Ng5 {[%clk 0:02:34]} 16. h4 {[%clk 0:02:20]}  Nf7 {[%clk 0:02:26]} 17. Rc1 {[%clk 0:02:19]}  Rac8 {[%clk 0:02:24]} 18. Kh2 {[%clk 0:02:10]}  Qe7 {[%clk 0:02:19]} 19. Re1 {[%clk 0:01:46]}  Rfd8 {[%clk 0:01:26]} 20. e4 {[%clk 0:01:40]}  cxd4 {[%clk 0:01:22]} 21. Rxc8 {[%clk 0:01:40]}  Rxc8 {[%clk 0:01:11]} 22. exd5 {[%clk 0:01:40]}  Qd8 {[%clk 0:00:48]} 23. Bxd4 {[%clk 0:01:10]}  Bb4 {[%clk 0:00:47]} 24. a3 {[%clk 0:00:38]}  Bxd2 {[%clk 0:00:37]} 25. Qxd2 {[%clk 0:00:38]}  Bxd5 {[%clk 0:00:38]} 26. Bxf6 {[%clk 0:00:32]}  Qxf6 {[%clk 0:00:21]} 27. Bxd5 {[%clk 0:00:29]}  Rf8 {[%clk 0:00:19]} 28. Re2 {[%clk 0:00:24]}  h6 {[%clk 0:00:16]} 29. Qe3 {[%clk 0:00:18]}  Kh8 {[%clk 0:00:16]} 30. Qe7 {[%clk 0:00:15]}  Nd6 {[%clk 0:00:07]} 31. Qxf6 {[%clk 0:00:14]}  Rxf6 {[%clk 0:00:05]} 32. Re6 {[%clk 0:00:14]}  Rxe6 {[%clk 0:00:05]} 33. Bxe6 {[%clk 0:00:15]}  Nb5 {[%clk 0:00:04]} 34. a4 {[%clk 0:00:13]}  Nd4 {[%clk 0:00:04]} 35. Bc4 {[%clk 0:00:13]}  g5 {[%clk 0:00:03]} 36. Kg2 {[%clk 0:00:12]}  Kg7 {[%clk 0:00:02]} 37. hxg5 {[%clk 0:00:13]}  hxg5 {[%clk 0:00:02]} 38. f3 {[%clk 0:00:12]}  Kf6 {[%clk 0:00:02]} 39. Kf2 {[%clk 0:00:12]}  Ke5 {[%clk 0:00:03]} 40. Ke3 {[%clk 0:00:13]}  Nc2+ {[%clk 0:00:03]} 41. Kd2 {[%clk 0:00:12]}  Nb4 {[%clk 0:00:04]} 42. Ke3 {[%clk 0:00:12]}  Nc2+ {[%clk 0:00:04]} 43. Kf2 {[%clk 0:00:12]}  Nd4 {[%clk 0:00:04]} 44. Ke3 {[%clk 0:00:12]}  Nc6 {[%clk 0:00:03]} 45. f4+ {[%clk 0:00:12]}  gxf4+ {[%clk 0:00:04]} 46. gxf4+ {[%clk 0:00:13]}  Kf6 {[%clk 0:00:05]} 47. Ke4 {[%clk 0:00:13]}  Nb8 {[%clk 0:00:03]} 48. f5 {[%clk 0:00:13]}  Nd7 {[%clk 0:00:03]} 49. Be6 {[%clk 0:00:13]}  Nc5+ {[%clk 0:00:03]} 50. Kd5 {[%clk 0:00:10]}  Nxb3 {[%clk 0:00:01]} 51. Kc6 {[%clk 0:00:10]}  Nc5 {[%clk 0:00:01]} 52. Bc8 {[%clk 0:00:02]} 1-0


[Site "https://www.chess.com"]

[Event "Titled Tuesday Blitz March 22 Early 2022"]
[White "Toncheva, Nadya"]
[Black "Rosen, Eric"]
[WhiteFideId "2924056"]
[BlackFideId "2032562"]
[WhiteElo "1884"]
[BlackElo "2362"]
[Result "0-1"]
[Round "03"]
[TimeControl "180+1"]
[Date "2022.03.22"]
[WhiteClock "0:00:09"]
[BlackClock "0:00:07"]

1. e4 {[%clk 0:03:00]}  e5 {[%clk 0:03:00]} 2. Nf3 {[%clk 0:03:01]}  Nf6 {[%clk 0:03:00]} 3. Nxe5 {[%clk 0:03:01]}  Nc6 {[%clk 0:03:00]} 4. Nxc6 {[%clk 0:03:01]}  dxc6 {[%clk 0:03:01]} 5. d3 {[%clk 0:02:59]}  Bc5 {[%clk 0:03:01]} 6. Be2 {[%clk 0:02:59]}  h5 {[%clk 0:03:02]} 7. c3 {[%clk 0:02:58]}  Ng4 {[%clk 0:03:01]} 8. d4 {[%clk 0:02:58]}  Qh4 {[%clk 0:03:00]} 9. Bxg4 {[%clk 0:02:34]}  Bxg4 {[%clk 0:02:59]} 10. Qd3 {[%clk 0:02:33]}  O-O-O {[%clk 0:02:55]} 11. Bf4 {[%clk 0:02:20]}  Rhe8 {[%clk 0:02:50]} 12. Nd2 {[%clk 0:02:11]}  Bf5 {[%clk 0:02:34]} 13. Qe3 {[%clk 0:01:26]}  Be7 {[%clk 0:01:12]} 14. h3 {[%clk 0:00:36]}  Bh7 {[%clk 0:01:05]} 15. Qg3 {[%clk 0:00:28]}  Qxg3 {[%clk 0:00:53]} 16. Bxg3 {[%clk 0:00:27]}  h4 {[%clk 0:00:54]} 17. Bf4 {[%clk 0:00:24]}  Bxe4 {[%clk 0:00:52]} 18. Nxe4 {[%clk 0:00:21]}  Bd6 {[%clk 0:00:52]} 19. Bxd6 {[%clk 0:00:14]}  Rxe4+ {[%clk 0:00:53]} 20. Kd2 {[%clk 0:00:14]}  Rxd6 {[%clk 0:00:53]} 21. Rae1 {[%clk 0:00:15]}  Rf4 {[%clk 0:00:48]} 22. f3 {[%clk 0:00:13]}  c5 {[%clk 0:00:48]} 23. Ke3 {[%clk 0:00:10]}  Rf5 {[%clk 0:00:39]} 24. dxc5 {[%clk 0:00:08]}  Rxc5 {[%clk 0:00:40]} 25. Kf2 {[%clk 0:00:08]}  Ra5 {[%clk 0:00:38]} 26. a3 {[%clk 0:00:08]}  Rb5 {[%clk 0:00:38]} 27. b4 {[%clk 0:00:07]}  Rd2+ {[%clk 0:00:33]} 28. Re2 {[%clk 0:00:04]}  Rbd5 {[%clk 0:00:33]} 29. Re1 {[%clk 0:00:04]}  Kd7 {[%clk 0:00:30]} 30. Rxd2 {[%clk 0:00:03]}  Rxd2+ {[%clk 0:00:31]} 31. Re2 {[%clk 0:00:04]}  Rd3 {[%clk 0:00:32]} 32. Rc2 {[%clk 0:00:02]}  Rd1 {[%clk 0:00:27]} 33. Ke2 {[%clk 0:00:02]}  Ra1 {[%clk 0:00:27]} 34. Ke3 {[%clk 0:00:02]}  Rxa3 {[%clk 0:00:24]} 35. Kd4 {[%clk 0:00:02]}  Ra6 {[%clk 0:00:23]} 36. Re2 {[%clk 0:00:02]}  Rd6+ {[%clk 0:00:22]} 37. Kc4 {[%clk 0:00:03]}  Rg6 {[%clk 0:00:21]} 38. Rf2 {[%clk 0:00:02]}  a6 {[%clk 0:00:19]} 39. f4 {[%clk 0:00:03]}  Rc6+ {[%clk 0:00:19]} 40. Kd3 {[%clk 0:00:03]}  Rd6+ {[%clk 0:00:19]} 41. Kc4 {[%clk 0:00:03]}  Rf6 {[%clk 0:00:19]} 42. f5 {[%clk 0:00:03]}  g6 {[%clk 0:00:15]} 43. Rf4 {[%clk 0:00:04]}  Rxf5 {[%clk 0:00:10]} 44. Rxh4 {[%clk 0:00:04]}  Rf2 {[%clk 0:00:08]} 45. Rg4 {[%clk 0:00:03]}  b5+ {[%clk 0:00:06]} 46. Kd3 {[%clk 0:00:03]}  Rf1 {[%clk 0:00:06]} 47. Rd4+ {[%clk 0:00:03]}  Kc6 {[%clk 0:00:06]} 48. Rg4 {[%clk 0:00:04]}  Rf5 {[%clk 0:00:07]} 49. Kc2 {[%clk 0:00:05]}  Re5 {[%clk 0:00:07]} 50. Kd3 {[%clk 0:00:05]}  Kd6 {[%clk 0:00:07]} 51. Kc2 {[%clk 0:00:05]}  Re2+ {[%clk 0:00:07]} 52. Kd3 {[%clk 0:00:06]}  Rf2 {[%clk 0:00:08]} 53. Rd4+ {[%clk 0:00:06]}  Ke5 {[%clk 0:00:07]} 54. Rg4 {[%clk 0:00:07]}  Kf6 {[%clk 0:00:08]} 55. Rg3 {[%clk 0:00:07]}  Rf1 {[%clk 0:00:08]} 56. Rg4 {[%clk 0:00:07]}  Ke6 {[%clk 0:00:08]} 57. Kc2 {[%clk 0:00:07]}  Kd5 {[%clk 0:00:08]} 58. Rg3 {[%clk 0:00:07]}  Ke4 {[%clk 0:00:07]} 59. Rg4+ {[%clk 0:00:07]}  Ke3 {[%clk 0:00:08]} 60. Rd4 {[%clk 0:00:07]}  Rf2+ {[%clk 0:00:08]} 61. Kb3 {[%clk 0:00:07]}  Rxg2 {[%clk 0:00:08]} 62. Rd7 {[%clk 0:00:08]}  f5 {[%clk 0:00:08]} 63. Rxc7 {[%clk 0:00:08]}  f4 {[%clk 0:00:08]} 64. Rc6 {[%clk 0:00:06]}  f3 {[%clk 0:00:09]} 65. Rxa6 {[%clk 0:00:06]}  f2 {[%clk 0:00:09]} 66. Re6+ {[%clk 0:00:07]}  Kd2 {[%clk 0:00:06]} 67. Rf6 {[%clk 0:00:08]}  Ke1 {[%clk 0:00:06]} 68. Re6+ {[%clk 0:00:07]}  Kf1 {[%clk 0:00:06]} 69. Rf6 {[%clk 0:00:08]}  Kg1 {[%clk 0:00:07]} 70. c4 {[%clk 0:00:08]}  Rg3+ {[%clk 0:00:06]} 71. Kc2 {[%clk 0:00:08]}  bxc4 {[%clk 0:00:06]} 72. b5 {[%clk 0:00:08]}  f1=Q {[%clk 0:00:05]} 73. Rxf1+ {[%clk 0:00:08]}  Kxf1 {[%clk 0:00:06]} 74. b6 {[%clk 0:00:09]}  Rb3 {[%clk 0:00:07]} 0-1


[Site "https://www.chess.com"]

[Event "Titled Tuesday Blitz March 22 Early 2022"]
[White "Tsydypov, Zhamsaran"]
[Black "Vogel, Roven"]
[WhiteFideId "4108566"]
[BlackFideId "12908088"]
[WhiteElo "2614"]
[BlackElo "2516"]
[Result "0-1"]
[Round "03"]
[TimeControl "180+1"]
[Date "2022.03.22"]
[WhiteClock "0:02:01"]
[BlackClock "0:02:00"]

1. e4 {[%clk 0:03:00]}  e5 {[%clk 0:02:57]} 2. Nf3 {[%clk 0:03:00]}  Nc6 {[%clk 0:02:58]} 3. Bb5 {[%clk 0:02:59]}  a6 {[%clk 0:02:58]} 4. Ba4 {[%clk 0:02:59]}  Nf6 {[%clk 0:02:58]} 5. O-O {[%clk 0:02:59]}  Be7 {[%clk 0:02:59]} 6. Qe2 {[%clk 0:02:59]}  O-O {[%clk 0:02:53]} 7. c3 {[%clk 0:02:59]}  d6 {[%clk 0:02:45]} 8. h3 {[%clk 0:02:57]}  b5 {[%clk 0:02:40]} 9. Bc2 {[%clk 0:02:57]}  Re8 {[%clk 0:02:35]} 10. d4 {[%clk 0:02:56]}  Bf8 {[%clk 0:02:35]} 11. d5 {[%clk 0:02:54]}  Ne7 {[%clk 0:02:34]} 12. a4 {[%clk 0:02:54]}  Bd7 {[%clk 0:02:32]} 13. Na3 {[%clk 0:02:50]}  Rb8 {[%clk 0:02:31]} 14. axb5 {[%clk 0:02:50]}  axb5 {[%clk 0:02:32]} 15. b4 {[%clk 0:02:50]}  c6 {[%clk 0:02:29]} 16. dxc6 {[%clk 0:02:51]}  Bxc6 {[%clk 0:02:30]} 17. Bd3 {[%clk 0:02:43]}  Qb6 {[%clk 0:02:30]} 18. Bg5 {[%clk 0:02:38]}  Ng6 {[%clk 0:02:24]} 19. Nc2 {[%clk 0:02:26]}  Nh5 {[%clk 0:02:21]} 20. g3 {[%clk 0:02:23]}  Nxg3 {[%clk 0:02:21]} 21. Qe1 {[%clk 0:02:16]}  Nxf1 {[%clk 0:02:21]} 22. Kxf1 {[%clk 0:02:16]}  Ra8 {[%clk 0:02:20]} 23. Rc1 {[%clk 0:02:14]}  Qb7 {[%clk 0:02:19]} 24. Nd2 {[%clk 0:02:14]}  Be7 {[%clk 0:02:12]} 25. Be3 {[%clk 0:02:13]}  h6 {[%clk 0:02:12]} 26. f3 {[%clk 0:02:11]}  Bg5 {[%clk 0:02:11]} 27. Nb3 {[%clk 0:02:08]}  Qd7 {[%clk 0:02:01]} 28. Kg2 {[%clk 0:02:06]}  Bxe3 {[%clk 0:01:59]} 29. Nxe3 {[%clk 0:02:01]}  Nf4+ {[%clk 0:02:00]} 0-1


[Site "https://www.chess.com"]

[Event "Titled Tuesday Blitz March 22 Early 2022"]
[White "Urazayev, Arystanbek"]
[Black "Pires, Marcos Vinicius Torsani"]
[WhiteFideId "13709810"]
[BlackFideId "2118939"]
[WhiteElo "2393"]
[BlackElo "2273"]
[Result "1-0"]
[Round "03"]
[TimeControl "180+1"]
[Date "2022.03.22"]
[WhiteClock "0:01:56"]
[BlackClock "0:00:15"]

1. e4 {[%clk 0:03:00]}  c5 {[%clk 0:02:55]} 2. Nf3 {[%clk 0:03:01]}  g6 {[%clk 0:02:55]} 3. d4 {[%clk 0:03:01]}  cxd4 {[%clk 0:02:53]} 4. c3 {[%clk 0:03:02]}  d5 {[%clk 0:02:51]} 5. exd5 {[%clk 0:03:01]}  Nf6 {[%clk 0:02:50]} 6. c4 {[%clk 0:03:00]}  b5 {[%clk 0:02:34]} 7. Nxd4 {[%clk 0:02:57]}  bxc4 {[%clk 0:02:33]} 8. Bxc4 {[%clk 0:02:58]}  Bg7 {[%clk 0:02:31]} 9. Nc3 {[%clk 0:02:57]}  O-O {[%clk 0:02:31]} 10. O-O {[%clk 0:02:57]}  Bb7 {[%clk 0:02:28]} 11. Qb3 {[%clk 0:02:56]}  Qb6 {[%clk 0:02:12]} 12. Be3 {[%clk 0:02:56]}  Qxb3 {[%clk 0:01:52]} 13. Bxb3 {[%clk 0:02:53]}  Nbd7 {[%clk 0:01:44]} 14. Rfd1 {[%clk 0:02:53]}  Nb6 {[%clk 0:01:40]} 15. Nc6 {[%clk 0:02:48]}  Rfe8 {[%clk 0:01:39]} 16. Nxa7 {[%clk 0:02:45]}  Rxa7 {[%clk 0:01:22]} 17. Bxb6 {[%clk 0:02:45]}  Ra6 {[%clk 0:01:23]} 18. Bd4 {[%clk 0:02:43]}  Nd7 {[%clk 0:00:55]} 19. Bxg7 {[%clk 0:02:42]}  Kxg7 {[%clk 0:00:56]} 20. Ba4 {[%clk 0:02:42]}  Rd8 {[%clk 0:00:56]} 21. Bxd7 {[%clk 0:02:38]}  Rxd7 {[%clk 0:00:57]} 22. a4 {[%clk 0:02:36]}  Rb6 {[%clk 0:00:42]} 23. Rd2 {[%clk 0:02:26]}  Rb4 {[%clk 0:00:34]} 24. a5 {[%clk 0:02:24]}  Ba6 {[%clk 0:00:33]} 25. f3 {[%clk 0:02:19]}  Rd6 {[%clk 0:00:28]} 26. Ne4 {[%clk 0:02:18]}  Rd8 {[%clk 0:00:24]} 27. Nc5 {[%clk 0:02:18]}  Bc4 {[%clk 0:00:20]} 28. a6 {[%clk 0:02:19]}  Rxd5 {[%clk 0:00:17]} 29. Rxd5 {[%clk 0:01:55]}  Bxd5 {[%clk 0:00:17]} 30. Rd1 {[%clk 0:01:56]}  e6 {[%clk 0:00:14]} 31. Rxd5 {[%clk 0:01:55]}  exd5 {[%clk 0:00:15]} 32. a7 {[%clk 0:01:56]} 1-0


[Site "https://www.chess.com"]

[Event "Titled Tuesday Blitz March 22 Early 2022"]
[White "Yeletsky, Ivan"]
[Black "Budrewicz, Krzysztof"]
[WhiteFideId "24180327"]
[BlackFideId "1127950"]
[WhiteElo "2303"]
[BlackElo "2248"]
[Result "1-0"]
[Round "03"]
[TimeControl "180+1"]
[Date "2022.03.22"]
[WhiteClock "0:00:49"]
[BlackClock "0:00:45"]

1. e4 {[%clk 0:03:00]}  c5 {[%clk 0:02:58]} 2. Nf3 {[%clk 0:03:00]}  e6 {[%clk 0:02:58]} 3. Qe2 {[%clk 0:02:57]}  Nc6 {[%clk 0:02:58]} 4. g3 {[%clk 0:02:57]}  Nf6 {[%clk 0:02:57]} 5. Bg2 {[%clk 0:02:57]}  e5 {[%clk 0:02:57]} 6. O-O {[%clk 0:02:54]}  Be7 {[%clk 0:02:57]} 7. c3 {[%clk 0:02:47]}  O-O {[%clk 0:02:57]} 8. d3 {[%clk 0:02:47]}  d6 {[%clk 0:02:57]} 9. a4 {[%clk 0:02:35]}  Re8 {[%clk 0:02:53]} 10. Na3 {[%clk 0:02:29]}  Bf8 {[%clk 0:02:53]} 11. Bg5 {[%clk 0:02:26]}  h6 {[%clk 0:02:53]} 12. Bxf6 {[%clk 0:02:26]}  Qxf6 {[%clk 0:02:53]} 13. Nd2 {[%clk 0:02:25]}  Qd8 {[%clk 0:02:51]} 14. Ndc4 {[%clk 0:02:12]}  a6 {[%clk 0:02:47]} 15. Ne3 {[%clk 0:02:05]}  Rb8 {[%clk 0:02:46]} 16. f4 {[%clk 0:01:50]}  b5 {[%clk 0:02:37]} 17. axb5 {[%clk 0:01:49]}  axb5 {[%clk 0:02:37]} 18. f5 {[%clk 0:01:49]}  Bd7 {[%clk 0:02:16]} 19. h4 {[%clk 0:01:46]}  Be7 {[%clk 0:02:08]} 20. Nac2 {[%clk 0:01:39]}  b4 {[%clk 0:02:07]} 21. Nd5 {[%clk 0:01:37]}  Bf8 {[%clk 0:02:05]} 22. f6 {[%clk 0:01:35]}  g6 {[%clk 0:02:03]} 23. h5 {[%clk 0:01:34]}  g5 {[%clk 0:01:57]} 24. Nce3 {[%clk 0:01:33]}  Be6 {[%clk 0:01:57]} 25. Ra6 {[%clk 0:01:26]}  Qd7 {[%clk 0:01:47]} 26. Rfa1 {[%clk 0:01:25]}  Rb7 {[%clk 0:01:46]} 27. Kh2 {[%clk 0:01:25]}  Reb8 {[%clk 0:01:45]} 28. R1a2 {[%clk 0:01:13]}  bxc3 {[%clk 0:01:45]} 29. bxc3 {[%clk 0:01:12]}  Rb1 {[%clk 0:01:45]} 30. Ra8 {[%clk 0:01:10]}  Rxa8 {[%clk 0:01:41]} 31. Rxa8 {[%clk 0:01:09]}  Rb8 {[%clk 0:01:42]} 32. Ra6 {[%clk 0:01:01]}  Qb7 {[%clk 0:01:39]} 33. Qa2 {[%clk 0:01:01]}  Qd7 {[%clk 0:01:30]} 34. Qa4 {[%clk 0:00:58]}  Nd8 {[%clk 0:01:08]} 35. Ne7+ {[%clk 0:00:57]}  Kh7 {[%clk 0:01:04]} 36. Qxd7 {[%clk 0:00:57]}  Bxd7 {[%clk 0:01:04]} 37. Rxd6 {[%clk 0:00:58]}  Be6 {[%clk 0:00:59]} 38. N3d5 {[%clk 0:00:51]}  Bxd5 {[%clk 0:00:52]} 39. exd5 {[%clk 0:00:52]}  Ra8 {[%clk 0:00:47]} 40. Kh3 {[%clk 0:00:51]}  Nb7 {[%clk 0:00:47]} 41. Rb6 {[%clk 0:00:50]}  Na5 {[%clk 0:00:45]} 42. d6 {[%clk 0:00:50]}  Rd8 {[%clk 0:00:45]} 43. Be4+ {[%clk 0:00:50]}  Kh8 {[%clk 0:00:45]} 44. c4 {[%clk 0:00:49]} 1-0


[Site "https://www.chess.com"]

[Event "Titled Tuesday Blitz March 22 Early 2022"]
[White "Zemerov, Vladimir"]
[Black "Karas, Marek"]
[WhiteFideId "4111583"]
[BlackFideId "14928558"]
[WhiteElo "2277"]
[BlackElo "2271"]
[Result "0-1"]
[Round "03"]
[TimeControl "180+1"]
[Date "2022.03.22"]
[WhiteClock "0:00:09"]
[BlackClock "0:00:38"]

1. d4 {[%clk 0:03:00]}  Nf6 {[%clk 0:02:57]} 2. c4 {[%clk 0:02:54]}  g6 {[%clk 0:02:57]} 3. Nc3 {[%clk 0:02:54]}  Bg7 {[%clk 0:02:58]} 4. e4 {[%clk 0:02:53]}  d6 {[%clk 0:02:59]} 5. h3 {[%clk 0:02:53]}  O-O {[%clk 0:02:59]} 6. Bg5 {[%clk 0:02:51]}  c5 {[%clk 0:02:59]} 7. d5 {[%clk 0:02:51]}  b6 {[%clk 0:02:59]} 8. Bd3 {[%clk 0:02:50]}  a6 {[%clk 0:02:54]} 9. Nf3 {[%clk 0:02:46]}  b5 {[%clk 0:02:52]} 10. cxb5 {[%clk 0:02:45]}  axb5 {[%clk 0:02:53]} 11. Nxb5 {[%clk 0:02:35]}  Ba6 {[%clk 0:02:45]} 12. a4 {[%clk 0:02:29]}  Bxb5 {[%clk 0:02:36]} 13. axb5 {[%clk 0:02:29]}  Nbd7 {[%clk 0:02:35]} 14. O-O {[%clk 0:02:25]}  Qb6 {[%clk 0:02:31]} 15. Ra6 {[%clk 0:02:16]}  Rxa6 {[%clk 0:02:28]} 16. bxa6 {[%clk 0:02:16]}  c4 {[%clk 0:02:29]} 17. Bxc4 {[%clk 0:02:11]}  Nxe4 {[%clk 0:02:28]} 18. Bxe7 {[%clk 0:02:10]}  Re8 {[%clk 0:02:27]} 19. Bh4 {[%clk 0:02:03]}  Bxb2 {[%clk 0:02:13]} 20. Qa4 {[%clk 0:02:01]}  Nec5 {[%clk 0:02:11]} 21. Qb5 {[%clk 0:01:59]}  Ra8 {[%clk 0:02:02]} 22. Rb1 {[%clk 0:01:58]}  Qxb5 {[%clk 0:01:54]} 23. Bxb5 {[%clk 0:01:56]}  Bf6 {[%clk 0:01:39]} 24. Bxd7 {[%clk 0:01:41]}  Nxd7 {[%clk 0:01:36]} 25. Bxf6 {[%clk 0:01:41]}  Nxf6 {[%clk 0:01:37]} 26. Rb6 {[%clk 0:01:41]}  Nxd5 {[%clk 0:01:35]} 27. Rxd6 {[%clk 0:01:41]}  Nb4 {[%clk 0:01:36]} 28. Ne5 {[%clk 0:01:28]}  Nxa6 {[%clk 0:01:33]} 29. Rd7 {[%clk 0:01:24]}  Rf8 {[%clk 0:01:33]} 30. f4 {[%clk 0:01:14]}  Nc5 {[%clk 0:01:32]} 31. Ra7 {[%clk 0:01:11]}  Ne6 {[%clk 0:01:31]} 32. g3 {[%clk 0:01:10]}  h5 {[%clk 0:01:29]} 33. h4 {[%clk 0:01:09]}  Nd4 {[%clk 0:01:28]} 34. Kf2 {[%clk 0:01:07]}  Nf5 {[%clk 0:01:25]} 35. Kf3 {[%clk 0:01:07]}  Nh6 {[%clk 0:01:23]} 36. Ke4 {[%clk 0:01:03]}  Rc8 {[%clk 0:01:21]} 37. Nd7 {[%clk 0:00:52]}  Rc3 {[%clk 0:01:18]} 38. Nf6+ {[%clk 0:00:42]}  Kg7 {[%clk 0:01:18]} 39. Ne8+ {[%clk 0:00:42]}  Kf8 {[%clk 0:01:17]} 40. Ra8 {[%clk 0:00:36]}  Rxg3 {[%clk 0:01:15]} 41. Nf6+ {[%clk 0:00:34]}  Ke7 {[%clk 0:01:09]} 42. Nd5+ {[%clk 0:00:29]}  Kd6 {[%clk 0:01:08]} 43. Ra7 {[%clk 0:00:27]}  Rg4 {[%clk 0:01:02]} 44. Ra6+ {[%clk 0:00:26]}  Kc5 {[%clk 0:01:01]} 45. Ra5+ {[%clk 0:00:24]}  Kc6 {[%clk 0:00:59]} 46. Ra6+ {[%clk 0:00:23]}  Kb5 {[%clk 0:00:59]} 47. Rb6+ {[%clk 0:00:23]}  Kc5 {[%clk 0:00:58]} 48. Rb8 {[%clk 0:00:23]}  Rxh4 {[%clk 0:00:55]} 49. Rc8+ {[%clk 0:00:21]}  Kd6 {[%clk 0:00:53]} 50. Rd8+ {[%clk 0:00:20]}  Kc6 {[%clk 0:00:52]} 51. Rc8+ {[%clk 0:00:19]}  Kd7 {[%clk 0:00:49]} 52. Rc7+ {[%clk 0:00:19]}  Kd6 {[%clk 0:00:47]} 53. Rc8 {[%clk 0:00:18]}  Rh1 {[%clk 0:00:40]} 54. Rd8+ {[%clk 0:00:18]}  Kc6 {[%clk 0:00:38]} 55. Rc8+ {[%clk 0:00:17]}  Kd7 {[%clk 0:00:38]} 56. Rc7+ {[%clk 0:00:16]}  Kd6 {[%clk 0:00:38]} 57. Rc8 {[%clk 0:00:16]}  Re1+ {[%clk 0:00:37]} 58. Ne3 {[%clk 0:00:11]}  Nf5 {[%clk 0:00:37]} 59. Rd8+ {[%clk 0:00:11]}  Ke7 {[%clk 0:00:37]} 60. Rd3 {[%clk 0:00:10]}  Rxe3+ {[%clk 0:00:37]} 61. Rxe3 {[%clk 0:00:09]}  Nxe3 {[%clk 0:00:38]} 0-1


[Site "https://www.chess.com"]

[Event "Titled Tuesday Blitz March 22 Early 2022"]
[White "Zhigalko, Sergei"]
[Black "Donchenko, Alexander"]
[WhiteFideId "13502956"]
[BlackFideId "24603295"]
[WhiteElo "2662"]
[BlackElo "2539"]
[Result "1/2-1/2"]
[Round "03"]
[TimeControl "180+1"]
[Date "2022.03.22"]
[WhiteClock "0:00:04"]
[BlackClock "0:00:06"]

1. e4 {[%clk 0:03:00]}  c6 {[%clk 0:03:00]} 2. d4 {[%clk 0:03:00]}  d5 {[%clk 0:03:01]} 3. e5 {[%clk 0:03:01]}  Bf5 {[%clk 0:03:01]} 4. Nf3 {[%clk 0:03:01]}  e6 {[%clk 0:03:01]} 5. Be2 {[%clk 0:03:02]}  Ne7 {[%clk 0:03:02]} 6. O-O {[%clk 0:03:02]}  h6 {[%clk 0:03:02]} 7. Nbd2 {[%clk 0:03:01]}  Nd7 {[%clk 0:03:02]} 8. a4 {[%clk 0:03:00]}  a5 {[%clk 0:03:00]} 9. Re1 {[%clk 0:02:58]}  Bh7 {[%clk 0:02:55]} 10. Nf1 {[%clk 0:02:57]}  Nf5 {[%clk 0:02:54]} 11. Bd3 {[%clk 0:02:55]}  Be7 {[%clk 0:02:48]} 12. c3 {[%clk 0:02:42]}  Rc8 {[%clk 0:02:43]} 13. Ng3 {[%clk 0:02:39]}  Nxg3 {[%clk 0:02:41]} 14. Bxh7 {[%clk 0:02:37]}  Rxh7 {[%clk 0:02:38]} 15. hxg3 {[%clk 0:02:30]}  c5 {[%clk 0:02:31]} 16. Be3 {[%clk 0:02:05]}  Rh8 {[%clk 0:02:25]} 17. Qe2 {[%clk 0:01:56]}  Qb6 {[%clk 0:02:21]} 18. g4 {[%clk 0:01:37]}  Qa6 {[%clk 0:02:07]} 19. Qd1 {[%clk 0:01:30]}  cxd4 {[%clk 0:01:56]} 20. Bxd4 {[%clk 0:01:18]}  Nc5 {[%clk 0:01:52]} 21. g3 {[%clk 0:01:06]}  Qd3 {[%clk 0:01:39]} 22. Nd2 {[%clk 0:00:36]}  Nd7 {[%clk 0:01:15]} 23. Re3 {[%clk 0:00:30]}  Qa6 {[%clk 0:01:15]} 24. Kg2 {[%clk 0:00:29]}  Nb8 {[%clk 0:01:07]} 25. Nf3 {[%clk 0:00:26]}  Nc6 {[%clk 0:01:07]} 26. Re1 {[%clk 0:00:24]}  Nxd4 {[%clk 0:01:00]} 27. Nxd4 {[%clk 0:00:25]}  Qb6 {[%clk 0:00:58]} 28. Re2 {[%clk 0:00:16]}  Bc5 {[%clk 0:00:58]} 29. Nb5 {[%clk 0:00:17]}  Be7 {[%clk 0:00:54]} 30. Qd3 {[%clk 0:00:16]}  Rc4 {[%clk 0:00:53]} 31. f3 {[%clk 0:00:12]}  g6 {[%clk 0:00:37]} 32. b3 {[%clk 0:00:12]}  Rc8 {[%clk 0:00:37]} 33. Rh1 {[%clk 0:00:13]}  Kf8 {[%clk 0:00:36]} 34. f4 {[%clk 0:00:13]}  Qc6 {[%clk 0:00:34]} 35. Qf3 {[%clk 0:00:08]}  Qd7 {[%clk 0:00:25]} 36. Rf2 {[%clk 0:00:05]}  Kg7 {[%clk 0:00:23]} 37. Rhf1 {[%clk 0:00:05]}  Bc5 {[%clk 0:00:22]} 38. Rd2 {[%clk 0:00:04]}  Rhe8 {[%clk 0:00:20]} 39. Rd3 {[%clk 0:00:03]}  Qc6 {[%clk 0:00:14]} 40. f5 {[%clk 0:00:02]}  exf5 {[%clk 0:00:13]} 41. gxf5 {[%clk 0:00:02]}  Rxe5 {[%clk 0:00:13]} 42. fxg6 {[%clk 0:00:02]}  Qxg6 {[%clk 0:00:14]} 43. Rxd5 {[%clk 0:00:02]}  Rce8 {[%clk 0:00:09]} 44. Rxe5 {[%clk 0:00:02]}  Rxe5 {[%clk 0:00:10]} 45. Nd4 {[%clk 0:00:02]}  Bxd4 {[%clk 0:00:08]} 46. cxd4 {[%clk 0:00:03]}  Rg5 {[%clk 0:00:07]} 47. Rf2 {[%clk 0:00:03]}  b6 {[%clk 0:00:06]} 48. Kh2 {[%clk 0:00:03]}  Rh5+ {[%clk 0:00:04]} 49. Kg2 {[%clk 0:00:03]}  Rg5 {[%clk 0:00:05]} 50. Kh2 {[%clk 0:00:03]}  Rh5+ {[%clk 0:00:06]} 51. Kg2 {[%clk 0:00:04]}  Rg5 {[%clk 0:00:06]} 1/2-1/2


[Site "https://www.chess.com"]